{"text_format":"1","workbook":"xlsx","n_sheets":3,"sheets":["Sayfa1","Sayfa2","Sayfa3"],"not_rendered":{"charts":0,"images":0,"macros":1,"external_links":0,"defined_names":1,"comments":0,"pivot_tables":0},"unopened":[],"bounds":{"document_bytes":16777216,"sheet_cells":100000,"rows_first":2000,"rows_last":500,"rows_between":2000,"halvings":0,"cell_chars":16384,"cell_head_chars":4096},"cells_cut":0,"cells_raw":0,"read":"whole","date_system":"1900"}

{"sheet":"Sayfa1","index":0,"n_rows":55,"n_cols":20,"rows_kept":55,"cut":false,"hidden":false,"merged":[[52,16,52,19],[51,16,51,19],[50,16,50,19],[3,18,3,19],[4,18,4,19],[3,14,3,17],[4,14,4,17],[3,0,3,9],[5,0,5,19],[6,15,7,15],[6,16,7,16],[6,7,7,7],[6,8,7,8],[6,9,7,9],[6,10,7,10],[0,0,0,19],[1,0,1,19],[7,19,8,19],[6,2,7,2],[6,3,7,3],[6,4,7,4],[6,5,7,5],[6,6,7,6],[6,12,7,12],[6,13,7,13],[6,14,7,14],[6,17,6,19],[7,17,8,17],[7,18,8,18],[4,0,4,9],[2,0,2,19],[6,11,7,11],[6,0,8,0],[6,1,7,1]]}
["2024-2025 EĞİTİM-ÖĞRETİM YILI"]
["AMASYA ŞEHİT MEHMET GÖK HALK EĞİTİM MERKEZİ MÜDÜRLÜĞÜ \nMODÜL DEĞERLENDİRME ÇİZELGESİ"]
[]
["Kurs Adı : \n\n",null,null,null,null,null,null,null,null,null,null,null,null,null,"Başlama Tarihi :",null,null,null," "]
["Kurs No  : ",null,null,null,null,null,null,null,null,null,null,null,null,null,"Bitiş Tarihi         :",null,null,null," "]
["MODÜL ADI VE MODÜL DEĞERLENDİRME NOTU"]
["SIRA NO","MODÜL ADI/KODU",null,null,null,null,null,null,null,null,null,null,null,null,null,null,null,"Kursun Başarı Puanı ve Notu"]
[null,null,null,null,null,null,null,null,null,null,null,null,null,null,null,null,null,"Toplam Puan","Not Ort.","Not Ort. Yazıyla"]
[null,"KURSİYERİN ADI SOYADI",1,2,3,4,5,6,7,8,9,10,11,12,13,14,15]
[1,null,null,null,null,null,null,null,null,null,null,null,null,null,null,null,null,{"$f":"SUM(C10:Q10)","v":0},{"$f":"ROUND(R10/COUNTA(C10:Q10),0)","v":{"$error":"#DIV/0!"}},{"$f":"yaziyacevir(S10)","v":{"$error":"#VALUE!"}}]
[2,null,null,null,null,null,null,null,null,null,null,null,null,null,null,null,null,{"$f":"SUM(C11:Q11)","v":0},{"$f":"ROUND(R11/COUNTA(C11:Q11),0)","v":{"$error":"#DIV/0!"}},{"$f":"yaziyacevir(S11)","v":{"$error":"#VALUE!"}}]
[3,null,null,null,null,null,null,null,null,null,null,null,null,null,null,null,null,0,{"$error":"#DIV/0!"},{"$error":"#VALUE!"}]
[4,null,null,null,null,null,null,null,null,null,null,null,null,null,null,null,null,0,{"$error":"#DIV/0!"},{"$error":"#VALUE!"}]
[5,null,null,null,null,null,null,null,null,null,null,null,null,null,null,null,null,0,{"$error":"#DIV/0!"},{"$error":"#VALUE!"}]
[6,null,null,null,null,null,null,null,null,null,null,null,null,null,null,null,null,0,{"$error":"#DIV/0!"},{"$error":"#VALUE!"}]
[7,null,null,null,null,null,null,null,null,null,null,null,null,null,null,null,null,0,{"$error":"#DIV/0!"},{"$error":"#VALUE!"}]
[8,null,null,null,null,null,null,null,null,null,null,null,null,null,null,null,null,0,{"$error":"#DIV/0!"},{"$error":"#VALUE!"}]
[9,null,null,null,null,null,null,null,null,null,null,null,null,null,null,null,null,0,{"$error":"#DIV/0!"},{"$error":"#VALUE!"}]
[10,null,null,null,null,null,null,null,null,null,null,null,null,null,null,null,null,0,{"$error":"#DIV/0!"},{"$error":"#VALUE!"}]
[11,null,null,null,null,null,null,null,null,null,null,null,null,null,null,null,null,0,{"$error":"#DIV/0!"},{"$error":"#VALUE!"}]
[12,null,null,null,null,null,null,null,null,null,null,null,null,null,null,null,null,0,{"$error":"#DIV/0!"},{"$error":"#VALUE!"}]
[13,null,null,null,null,null,null,null,null,null,null,null,null,null,null,null,null,0,{"$error":"#DIV/0!"},{"$error":"#VALUE!"}]
[14,null,null,null,null,null,null,null,null,null,null,null,null,null,null,null,null,0,{"$error":"#DIV/0!"},{"$error":"#VALUE!"}]
[15,null,null,null,null,null,null,null,null,null,null,null,null,null,null,null,null,0,{"$error":"#DIV/0!"},{"$error":"#VALUE!"}]
[16,null,null,null,null,null,null,null,null,null,null,null,null,null,null,null,null,0,{"$error":"#DIV/0!"},{"$error":"#VALUE!"}]
[17,null,null,null,null,null,null,null,null,null,null,null,null,null,null,null,null,0,{"$error":"#DIV/0!"},{"$error":"#VALUE!"}]
[18,null,null,null,null,null,null,null,null,null,null,null,null,null,null,null,null,0,{"$error":"#DIV/0!"},{"$error":"#VALUE!"}]
[19,null,null,null,null,null,null,null,null,null,null,null,null,null,null,null,null,0,{"$error":"#DIV/0!"},{"$error":"#VALUE!"}]
[20,null,null,null,null,null,null,null,null,null,null,null,null,null,null,null,null,0,{"$error":"#DIV/0!"},{"$error":"#VALUE!"}]
[21,null,null,null,null,null,null,null,null,null,null,null,null,null,null,null,null,0,{"$error":"#DIV/0!"},{"$error":"#VALUE!"}]
[22,null,null,null,null,null,null,null,null,null,null,null,null,null,null,null,null,0,{"$error":"#DIV/0!"},{"$error":"#VALUE!"}]
[23,null,null,null,null,null,null,null,null,null,null,null,null,null,null,null,null,{"$f":"SUM(C32:Q32)","v":0},{"$f":"ROUND(R32/COUNTA(C32:Q32),0)","v":{"$error":"#DIV/0!"}},{"$error":"#VALUE!"}]
[24,null,null,null,null,null,null,null,null,null,null,null,null,null,null,null,null,0,{"$error":"#DIV/0!"},{"$error":"#VALUE!"}]
[25,null,null,null,null,null,null,null,null,null,null,null,null,null,null,null,null,0,{"$error":"#DIV/0!"},{"$error":"#VALUE!"}]
[26,null,null,null,null,null,null,null,null,null,null,null,null,null,null,null,null,0,{"$error":"#DIV/0!"},{"$error":"#VALUE!"}]
[27,null,null,null,null,null,null,null,null,null,null,null,null,null,null,null,null,0,{"$error":"#DIV/0!"},{"$error":"#VALUE!"}]
[28,null,null,null,null,null,null,null,null,null,null,null,null,null,null,null,null,0,{"$error":"#DIV/0!"},{"$error":"#VALUE!"}]
[29,null,null,null,null,null,null,null,null,null,null,null,null,null,null,null,null,0,{"$error":"#DIV/0!"},{"$error":"#VALUE!"}]
[30,null,null,null,null,null,null,null,null,null,null,null,null,null,null,null,null,0,{"$error":"#DIV/0!"},{"$error":"#VALUE!"}]
[31,null,null,null,null,null,null,null,null,null,null,null,null,null,null,null,null,0,{"$error":"#DIV/0!"},{"$error":"#VALUE!"}]
[32,null,null,null,null,null,null,null,null,null,null,null,null,null,null,null,null,0,{"$error":"#DIV/0!"},{"$error":"#VALUE!"}]
[33,null,null,null,null,null,null,null,null,null,null,null,null,null,null,null,null,0,{"$error":"#DIV/0!"},{"$error":"#VALUE!"}]
[34,null,null,null,null,null,null,null,null,null,null,null,null,null,null,null,null,0,{"$error":"#DIV/0!"},{"$error":"#VALUE!"}]
[35,null,null,null,null,null,null,null,null,null,null,null,null,null,null,null,null,0,{"$error":"#DIV/0!"},{"$error":"#VALUE!"}]
[36,null,null,null,null,null,null,null,null,null,null,null,null,null,null,null,null,0,{"$error":"#DIV/0!"},{"$error":"#VALUE!"}]
[37,null,null,null,null,null,null,null,null,null,null,null,null,null,null,null,null,0,{"$error":"#DIV/0!"},{"$error":"#VALUE!"}]
[38,null,null,null,null,null,null,null,null,null,null,null,null,null,null,null,null,0,{"$error":"#DIV/0!"},{"$error":"#VALUE!"}]
[39,null,null,null,null,null,null,null,null,null,null,null,null,null,null,null,null,0,{"$error":"#DIV/0!"},{"$error":"#VALUE!"}]
[40,null,null,null,null,null,null,null,null,null,null,null,null,null,null,null,null,0,{"$error":"#DIV/0!"},{"$error":"#VALUE!"}]
[]
[null,null,null,null,null,null,null,null,null,null,null,null,null,null,null,null,"Ahmet TAŞOVA"]
[null,"İmza  : …………….………",null,null,null,null,null,null,null,null,null,null,null,null,null,null,"Halk Eğitim Merkezi Müdürü"]
[null,"Tarih : "]
[null,"Adı Soyadı : "]
[null,"                   Kurs Öğretmeni"]

{"sheet":"Sayfa2","index":1,"n_rows":0,"n_cols":0,"rows_kept":0,"cut":false,"hidden":false,"merged":[]}

{"sheet":"Sayfa3","index":2,"n_rows":0,"n_cols":0,"rows_kept":0,"cut":false,"hidden":false,"merged":[]}